Cogmind - Beta 15 *** ADVENTURER MODE // 2025.08.05 @ 23:56:38 Player: Teku Result: Destroyed by 2P-OJ6(R) with Subdweller Laser Performance ------------- Evolutions (0) 0 Regions Visited (3) 600 Robots Destroyed (18) 90 Value Destroyed (459) 459 Prototype IDs (0) 0 Alien Tech Used (0) 0 Bonus (0) 0 TOTAL SCORE: 1149 Bonus ------- None Cogmind --------- Core Integrity 0/250 Matter 275/300 Energy 219/250 System Corruption 0% Temperature Cool (6) Movement Core (450) Ox8 Location -10/Subcaves Parts ------- > --- POWER (1) -------- Ion Engine > --- PROPULSION (2) --- (None) > --- UTILITY (2) ------ Large Storage Unit > --- WEAPON (2) ------- Small Laser > --- INVENTORY (15) --- Light Ion Engine Aluminum Leg Structural Scanner Sensor Array Signal Interpreter Transport Network Coupler Scrap Shield Assault Rifle Makeshift Hammer Peak State ------------ > --- POWER ------------ Light Ion Engine > --- PROPULSION ------- Aluminum Leg Aluminum Leg > --- UTILITY ---------- Improved Heat Sink Large Storage Unit > --- WEAPON ----------- Medium Laser Assault Rifle > --- INVENTORY -------- Ion Engine Light Ion Engine Light Ion Engine Aluminum Leg Aluminum Leg Aluminum Leg Structural Scanner Sensor Array Signal Interpreter Transport Network Coupler Scrap Shield Small Laser Small Laser Makeshift Hammer [Rating: 11] Favorites ----------- Power Light Ion Engine Engine Light Ion Engine Propulsion Aluminum Leg Leg Aluminum Leg Utility Large Storage Unit Device Improved Heat Sink Storage Large Storage Unit Weapon Medium Laser Energy Gun Medium Laser Ballistic Gun Assault Rifle Build | -11 -10 -10 -10 ------- Run | Yrd Mat Min Sub Slots Evolved . | . . . . Power . | . . . . Propulsion . | . . . . Utility . | . . . . Weapon . | . . . . Parts Attached 16 | 5 5 . 6 Power 5 | 1 2 . 2 Engine 5 | 1 2 . 2 Core . | . . . . Reactor . | . . . . Propulsion 5 | 2 1 . 2 Treads . | . . . . Leg 5 | 2 1 . 2 Wheel . | . . . . Hover . | . . . . Flight . | . . . . Utility 2 | . 2 . . Device 1 | . 1 . . Storage 1 | . 1 . . Processor . | . . . . Hackware . | . . . . Protection . | . . . . Artifact . | . . . . Weapon 4 | 2 . . 2 Energy Gun 3 | 1 . . 2 Energy Cannon . | . . . . Ballistic Gun 1 | 1 . . . Ballistic Cannon . | . . . . Launcher . | . . . . Special Weapon . | . . . . Impact Weapon . | . . . . Slashing Weapon . | . . . . Piercing Weapon . | . . . . Special Melee Weapon . | . . . . Unidentified Prototypes . | . . . . Parts Lost 7 | . . . 7 Power 1 | . . . 1 Propulsion 3 | . . . 3 Utility 1 | . . . 1 Weapon 2 | . . . 2 Highest Loss Streak 7 | . . . 7 To Critical Strikes . | . . . . Average Backups 6 | 1 5 10 11 Power 1 | . . 1 2 Propulsion 2 | 1 2 3 2 Utility 2 | . 1 4 4 Weapon 1 | . 1 1 2 Tool/Special . | . . . . Unused Backups 8 | . 2 . 6 Power 1 | . . . 1 Propulsion 2 | . 2 . . Utility 5 | . . . 5 Weapon . | . . . . Tool/Special . | . . . . Average Slot Usage (%) 96 | . 95 100 92 Engine 13 | . 13 14 12 Leg 27 | . 27 28 26 Device 12 | . 12 14 10 Storage 12 | . 12 14 14 Energy Gun 14 | . 14 14 22 Ballistic Gun 12 | . 14 14 3 Peak Build Rating 11 | 5 10 10 11 Average Rating 8 | 3 8 9 9 On Entrance 6 | . 5 9 10 Naked Turns . | . . . . Heaviest Build 28 | 7 28 28 28 Greatest Support 20 | 20 20 20 20 Greatest Overweight (x) 8 | . 2 1 8 Average Overweight (x) . | . . 1 1 Largest Inventory Capacity 15 | 5 15 15 15 Average Capacity 13 | 5 13 15 15 Most Carried 15 | 4 11 13 15 Average Carried 6 | 2 5 10 12 Final Capacity 15 | 5 15 15 15 Final Carried 13 | 4 9 13 10 Class Distribution -------------------- 94% | Mutant 5% | Scavenger-Mutant Dominant Class ---------------- Mutant | -10/Materials Mutant | -10/Mines Scavenger-Mutant | -10/Subcaves Resources | -11 -10 -10 -10 ----------- Run | Yrd Mat Min Sub Matter Collected 432 | 256 117 59 . Remotely . | . . . . Salvage Created 640 | 43 418 149 30 Parts 36 | 2 24 8 2 Haulers Intercepted . | . . . . Recyclers Shooed . | . . . . Parts Field Recycled . | . . . . Retrieved Matter . | . . . . Parts Self-Destructed . | . . . . Prevented . | . . . . Kills | -11 -10 -10 -10 ------- Run | Yrd Mat Min Sub Combat Hostiles Destroyed 15 | 1 8 5 1 Guns 15 | 1 8 5 1 Classes Destroyed 5 | 1 3 . 1 Recycler 1 | . 1 . . Watcher 2 | . 2 . . Swarmer 6 | . 3 3 . Grunt 8 | 1 5 2 . Subdweller 1 | . . . 1 Best Kill Streak 4 | 1 4 3 1 Combat Bots Only 3 | 1 3 3 1 Max Kills in Single Turn 2 | 1 2 1 1 Gunslinging 1 | . 1 . . Exploded . | . . . . Melee . | . . . . Uniques/NPCs Destroyed . | . . . . Combat | -11 -10 -10 -10 -------- Run | Yrd Mat Min Sub Hostile Shots Fired 108 | 3 36 26 43 Missed 22 | 1 6 3 12 Hits 86 | 2 30 23 31 Projectile 86 | 2 30 23 31 AOE 2 | . . . 2 Critical Strikes 2 | . 1 . 1 Damage Taken 1078 | 16 285 181 596 Core 265 | 8 97 13 147 Absorbed by Shields . | . . . . Ignored by Resistances 315 | 5 88 56 166 Core Remaining (%) 96 | 96 . . . Volleys Fired 48 | 2 30 12 4 Largest 2 | 2 2 2 2 Hottest 90 | 70 70 70 90 Shots Fired 94 | 4 60 24 6 Gun 94 | 4 60 24 6 Cannon . | . . . . Launcher . | . . . . Special . | . . . . Kinetic 44 | 2 30 12 . Thermal 50 | 2 30 12 6 Explosive . | . . . . Electromagnetic . | . . . . Robot Hit Streak 14 | 3 14 8 5 Robot Miss Streak 3 | . 3 2 1 Penetration Max . | . . . . Secondary Targets 3 | . 2 1 . Max Gunslinging Chain 1 | . 1 1 . Shots Hit Robots 68 | 3 45 15 5 Core Hits 30 | 2 19 8 1 Critical Kills . | . . . . Critical Parts Destroyed . | . . . . Critical Strikes 4 | . 1 2 1 Burn 4 | . 1 2 1 Melee Attacks . | . . . . Impact . | . . . . Slashing . | . . . . Piercing . | . . . . Sneak Attacks . | . . . . Combat Hostiles . | . . . . Follow-up Attacks . | . . . . Damage Inflicted 843 | 37 567 183 56 Guns 843 | 37 567 183 56 Cannons . | . . . . Explosions . | . . . . Melee . | . . . . Ramming . | . . . . Kinetic 388 | 13 278 97 . Thermal 455 | 24 289 86 56 Explosive . | . . . . Electromagnetic . | . . . . Impact . | . . . . Slashing . | . . . . Piercing . | . . . . Highest Corruption . | . . . . Average Corruption . | . . . . Corruption Purged . | . . . . Corruption Blocked . | . . . . Overload Shots . | . . . . Overflow Damage . | . . . . Projectiles . | . . . . Explosions . | . . . . Melee . | . . . . Knockbacks . | . . . . Impact . | . . . . Kinetic . | . . . . Secondary . | . . . . Self-Inflicted Damage . | . . . . Shots . | . . . . Rammed . | . . . . Targets Rammed . | . . . . Kicked . | . . . . Crushed . | . . . . Highest Temperature 93 | 24 93 4 . Average Temperature 37 | 13 48 4 . Received Heat Transfer 366 | 12 192 57 105 Siege Activations . | . . . . Martial Activations . | . . . . Shielding Activations . | . . . . Robots Disrupted . | . . . . Combat Hostiles . | . . . . Robots Corrupted . | . . . . Combat Hostiles . | . . . . Parts Fried . | . . . . Impact Corruptions . | . . . . Robots Melted . | . . . . Combat Hostiles . | . . . . Parts Melted 2 | . 1 1 . Heat Transferred 1617 | 74 925 407 211 Parts Sabotaged . | . . . . Parts Stolen . | . . . . Parts Stripped . | . . . . Power Chain Reactions . | . . . . Alert | -11 -10 -10 -10 ------- Run | Yrd Mat Min Sub Maximum Alert Level . | . . . . Low Security (%) 100 | 100 100 100 . Level 1 . | . . . . Level 2 . | . . . . Level 3 . | . . . . Level 4 . | . . . . Level 5 . | . . . . High Security . | . . . . Max Security . | . . . . Peak Influence 77 | 20 77 60 . Initial 7 | . 5 7 . Average 20 | 1 19 29 . Influence Increases 369 | 20 229 120 . Destroy 0b10 Robot/C 280 | 20 160 100 . Destroy 0b10 Robot/NC 15 | . 15 . . Destroy Leader 64 | . 44 20 . Disable Machine 9 | . 9 . . Destroy Structure 1 | . 1 . . Influence Decreases 369 | 10 217 122 20 Entered New Map 32 | . 5 15 12 Time Decay 337 | 10 212 107 8 Squads Dispatched 1 | . 1 . . Investigation 1 | . 1 . . Extermination . | . . . . Reinforcement . | . . . . Assault . | . . . . Garrison . | . . . . Intercept . | . . . . Searches Triggered . | . . . . Construction Impeded . | . . . . Haulers Reinforced . | . . . . Active Scanning Responses . | . . . . Cargo Convoy Interrupts . | . . . . Stealth | -11 -10 -10 -10 --------- Run | Yrd Mat Min Sub Distress Signals . | . . . . Communications Jammed . | . . . . Distress Signals . | . . . . Times Spotted 30 | 1 14 5 10 Peak Tracking Total 8 | 1 3 3 8 Tactical Retreats . | . . . . Traps | -11 -10 -10 -10 ------- Run | Yrd Mat Min Sub Traps Triggered 3 | . 3 . . Indirectly . | . . . . Trap Hack Attempts . | . . . . Triggered . | . . . . Disarmed . | . . . . Reprogrammed . | . . . . Reused . | . . . . Traps Extracted . | . . . . Installed . | . . . . Triggered . | . . . . Machines | -11 -10 -10 -10 ---------- Run | Yrd Mat Min Sub Machines Disabled 1 | . 1 . . Max in Single Turn 1 | . 1 . . Machines Repaired . | . . . . Machines Dismantled . | . . . . Machines Sabotaged . | . . . . Overloaded Fab Kills . | . . . . Hacking | -11 -10 -10 -10 --------- Run | Yrd Mat Min Sub Machines Accessed 2 | . 2 . . Terminals 2 | . 2 . . Fabricators . | . . . . Repair Stations . | . . . . Recycling Units . | . . . . Scanalyzers . | . . . . Garrison Access . | . . . . Total Hacks 4 | . 4 . . Successful 3 | . 3 . . Failed 1 | . 1 . . Catastrophic . | . . . . Database Lockouts . | . . . . Manual . | . . . . Terminals 4 | . 4 . . Fabricators . | . . . . Repair Stations . | . . . . Recycling Units . | . . . . Scanalyzers . | . . . . Garrison Access . | . . . . Terminal Hacks 3 | . 3 . . Record 2 | . 2 . . Alert Level 1 | . 1 . . Fabricator Hacks . | . . . . Repair Station Hacks . | . . . . Recycling Unit Hacks . | . . . . Scanalyzer . | . . . . Garrison Access Hacks . | . . . . Unauthorized Hacks . | . . . . Terminals . | . . . . Fabricators . | . . . . Repair Stations . | . . . . Recycling Units . | . . . . Scanalyzers . | . . . . Garrison Access . | . . . . Data Cores Recovered . | . . . . Used . | . . . . Hacking Detections 1 | . 1 . . Full Trace Events . | . . . . Feedback Events . | . . . . Feedback Blocked . | . . . . Robot Schematics Acquired . | . . . . Robots Built . | . . . . Authchips . | . . . . Time . | . . . . Total Robot Build Rating . | . . . . Part Schematics Acquired . | . . . . Parts Built . | . . . . Authchips . | . . . . Time . | . . . . Total Part Build Rating . | . . . . Parts Repaired . | . . . . Time . | . . . . Parts Recycled . | . . . . Recycled Matter . | . . . . Retrieved Matter . | . . . . Retrieved Components . | . . . . Parts Scanalyzed . | . . . . Part Schematics Acquired . | . . . . Parts Damaged . | . . . . Bothacking | -11 -10 -10 -10 ------------ Run | Yrd Mat Min Sub Used RIF Installer . | . . . . Robots Hacked . | . . . . Non-combat . | . . . . Combat . | . . . . Robot Hacks Applied . | . . . . Relay Couplers Released . | . . . . Fabnet Peak Effective % . | . . . . Robots Rewired . | . . . . Allies Hacked . | . . . . Hacks Repelled . | . . . . Allies | -11 -10 -10 -10 -------- Run | Yrd Mat Min Sub Total Allies . | . . . . Largest Group . | . . . . Highest-Rated Group . | . . . . Highest-Rated Ally . | . . . . Total Orders . | . . . . Ally Attacks . | . . . . Total Damage . | . . . . Kills . | . . . . Allies Corrupted . | . . . . Allies Melted . | . . . . Intel | -11 -10 -10 -10 ------- Run | Yrd Mat Min Sub Active Infowar (turns) . | . . . . Robot Analysis Total . | . . . . Derelict Logs Recovered 2 | . . 2 . Drone Launches . | . . . . Drone Recoveries . | . . . . Exploration | -11 -10 -10 -10 ------------- Run | Yrd Mat Min Sub Turns Passed 1212 | 107 727 260 118 Spaces Moved 565 | 85 315 114 51 Core 21 | 20 . . 1 Treads . | . . . . Legs 544 | 65 315 114 50 Wheels . | . . . . Hover . | . . . . Flight . | . . . . Fastest Speed 50 | 50 120 190 190 Average Speed 173 | 103 182 190 197 Slowest Speed 450 | 120 260 190 450 Overloaded Moves . | . . . . Propulsion Burnouts . | . . . . Robots Hopped . | . . . . Potential Cave-ins . | . . . . Cave-ins Triggered . | . . . . Exploration Rate (%) 24 | 7 57 30 4 Regions Visited 3 Branch Regions 2 Pre-discovered Areas 1 | . . 1 . Known Exits Taken . | . . . . Unknown Exits Taken 3 | 1 1 1 . Scrap Searched . | . . . . Spaces Dug . | . . . . Terrain Destroyed . | . . . . Melee . | . . . . Projectile . | . . . . AOE . | . . . . Terrain Rammed . | . . . . Walls Destroyed . | . . . . Machines Disabled . | . . . . Actions | -11 -10 -10 -10 --------- Run | Yrd Mat Min Sub Total 705 | 100 407 134 64 Wait 49 | . 46 3 . Move 562 | 84 314 113 51 Hop . | . . . . Pick Up 25 | 9 10 5 1 Fast Attach 1 | . 1 . . Attach 11 | 5 3 . 3 Detach . | . . . . Swap 4 | . 1 . 3 Drop 5 | . 2 1 2 Fire 48 | 2 30 12 4 Melee . | . . . . Ram . | . . . . Kick . | . . . . Crush . | . . . . Escape Stasis . | . . . . Rewire . | . . . . Trap . | . . . . Miscellaneous . | . . . . Route ------- -11/Scrapyard -10/Materials (discovered 2 exits: [*Mat] / [*Min]) -10/Mines (discovered 2 exits: [*Mat] / [*Sub]) -10/Subcaves History --------- Turn | Location | Event 2 | -11/Scrapyard | Met Revision 17 86 | -11/Scrapyard | Discovered new exit (range 8) 108 | -11/Scrapyard | Entered Materials 304 | -10/Materials | Build established: Mutant 458 | -10/Materials | Discovered new exit (range 3) 801 | -10/Materials | Discovered new exit (range 10) 835 | -10/Materials | Entered Mines 873 | -10/Mines | Discovered new exit (range 10) 993 | -10/Mines | Learned location of Zion (-7) 1001 | -10/Mines | Learned Materials terminal intel 1069 | -10/Mines | A weapon hastily lodged in a ceiling crevice suddenly fell to the ground 1085 | -10/Mines | Discovered new exit (range 5) 1095 | -10/Mines | Entered Subcaves 1182 | -10/Subcaves | Ambushed by swarm of Subdwellers 1182 | -10/Subcaves | Ambushed by Subdwellers from Twisted Machinery 1182 | -10/Subcaves | Ambushed by Subdwellers from Twisted Machinery 1182 | -10/Subcaves | Ambushed by Subdwellers from Twisted Machinery 1187 | -10/Subcaves | Core integrity fell below 50% 1198 | -10/Subcaves | Core integrity fell below 20% 1213 | -10/Subcaves | Destroyed by 2P-OJ6(R) with Subdweller Laser Last Messages --------------- 01193_ 9I-EZP(R) heat spikes uncontrollably. 01193_ Sml. Laser destroyed. 01193_ S5-Y1E(h) destroyed. 01193_ 9I-EZP(R) overheating. 01193_ 9I-EZP(R) destroyed. 01194_ FW-JLF(R) suffers critical hit (Burn). 01195_ 1O-79Y(R) emerges from the Twisted Machinery. 01198_ Aluminum Leg destroyed. 01199_ HZ-HP7(R) emerges from the Twisted Machinery. 01200_ Aluminum Leg destroyed. 01204_ Med. Laser destroyed. 01205_ YW-ZKQ(R) destroyed. 01205_ QV-YHM(R) suffers critical hit (Burn). 01205_ QV-YHM(R) destroyed. 01206_ 4T-PTU(g) destroyed. 01208_ 5V-02S(R) suffers critical hit (Burn). 01208_ LV-Q80(g) destroyed. 01209_ FW-JLF(R) destroyed. 01209_ MZ-0RT(R) destroyed. 01211_ Aluminum Leg destroyed. Map ----- +----------------------------------------------------+ | ?????????????????????????????????????????????????? | | ?????????????????????????????????????????????????? | | ?????????????????????????????????????????????????? | | ?????????????????????????????????????????????????? | | ?????????????????????###?????????????????????????? | | ?????????????????##### #######???????????????????? | | ?????????????????# # * "#???????????????????? | | ?????????????????## = "#???????????????????? | | ?????????????????# ### " #???????????????????? | | ?????????????????# #?##" #???????????????????? | | ?????????????????# #??##"""??????????????????? | | ?????????????????## ##???? # "?????????????????? | | ?????????????????# ##?????##"""????????????????? | | ?????????????????## ##?????????""????????????????? | | ??????????????????## ##????????#"????????????????? | | ???????????????????## #?####?????????????????????? | | ??????????????????### ### #?????????????????????? | | ????????? #???#### ## #?????????????????????? | | ????????? ## # #?????????????????????? | | ???????? #?##??????????????????? | | ??????????# ## ## #??????????????????? | | ?????????????# # ## #??????????????????? | | ?????????????# ## #??????????????????? | | ???????? ## #??????????????????? | | ????????? ?# #??????????????????? | | ????????? #?# @ ####????????????????? | | ?????????? #??## ;; ##???##??????????? | | ?????????? ###????### [%! #?? ##?????????? | | ??????????? ??????????# ;#? #?????????? | | ??????????? ??????????## !%g=R[## #?????????? | | ??????????????????????# &%R*R[&* #???????????? | | ??????????????????????## =R%%[%%!%"#???????????? | | ???????????????????????# *%&[%""#???????????? | | ???????????????????????#;# #;[=! ###???????????? | | ???????????????????????### # #####?????????????? | | ?????????????????????????#####?#?????????????????? | | ?????????????????????????????????????????????????? | | ?????????????????????????????????????????????????? | | ?????????????????????????????????????????????????? | | ?????????????????????????????????????????????????? | | ?????????????????????????????????????????????????? | | ?????????????????????????????????????????????????? | | ?????????????????????????????????????????????????? | | ?????????????????????????????????????????????????? | | ?????????????????????????????????????????????????? | | ?????????????????????????????????????????????????? | | ?????????????????????????????????????????????????? | | ?????????????????????????????????????????????????? | | ?????????????????????????????????????????????????? | | | +----------------------------------------------------+ Best States ------------- Heat Dissipation 39 Energy Generation 10 Energy Capacity 250 Matter Stores 300 Matter Capacity 300 Sight Range 16 Terrain Scan Density 10 Resistance: KI 20 Resistance: TH 20 Resistance: EX 20 Resistance: EM 20 Resistance: I 20 Resistance: S 20 Resistance: P 20 Evasion (%) 55 Offensive Hacking 10 Item Schematics ----------------- None Robot Schematics ------------------ None Fabricated ------------ Nothing Repaired ---------- Nothing Alien Tech Used ----------------- None Achievements -------------- None Challenges ------------ None Game ------ Seed CompanionDispersionSpiker Manual? 0 Play Time 00:11:56 Cumulative 1.6 hours Start 2025.08.05 @ 23:46:28 End 2025.08.05 @ 23:56:38 Sessions 1 Manual Loads 0 Difficulty Adventurer Special Mode None Game No. 3 Rogue 0 Adventurer 3 Explorer 0 Win Type - Total 0 Types 0/0/0/0/0/0/0/0/0/0 Lore% 6 Gallery% 5 Achievement% 5 Wizard Run 0 Options --------- Layout 0 ASCII 0 Keyboard 0 Movement Numpad Keybinds 0 Fullscreen 1 Font 24/Smallcaps Map View 76x50 Zoom Use 0% Tactical HUD 1 Map Filters NONE Filters NONE Steam 1 RUN: 5f906cb3-dbef-447c-844d-cddb6a39f84d